[Event "Titled Tuesday Blitz May 23 Early 2023"]
[White "Ilamparthi A R"]
[Black "HamedWafa4"]
[WhiteFideId "45015775"]
[WhiteElo "2348"]
[BlackElo "2616"]
[Result "1/2-1/2"]
[Round "09"]
[TimeControl "180+2"]
[Date "2023.05.23"]
[WhiteClock "0:00:12"]
[BlackClock "0:00:09"]

1. e4 {[%clk 0:03:00]}  e5 {[%clk 0:02:59]} 2. Nf3 {[%clk 0:03:00]}  Nc6 {[%clk 0:02:55]} 3. d3 {[%clk 0:03:00]}  g6 {[%clk 0:02:51]} 4. g3 {[%clk 0:03:00]}  Bg7 {[%clk 0:02:50]} 5. Bg2 {[%clk 0:03:00]}  Nge7 {[%clk 0:02:35]} 6. O-O {[%clk 0:03:00]}  O-O {[%clk 0:02:35]} 7. Re1 {[%clk 0:03:00]}  d6 {[%clk 0:02:34]} 8. c3 {[%clk 0:02:59]}  h6 {[%clk 0:02:34]} 9. d4 {[%clk 0:02:58]}  exd4 {[%clk 0:02:30]} 10. cxd4 {[%clk 0:02:58]}  Bg4 {[%clk 0:02:30]} 11. Be3 {[%clk 0:02:55]}  d5 {[%clk 0:02:28]} 12. e5 {[%clk 0:02:55]}  Nf5 {[%clk 0:02:28]} 13. Nc3 {[%clk 0:02:54]}  Nxe3 {[%clk 0:02:18]} 14. fxe3 {[%clk 0:02:52]}  f6 {[%clk 0:02:05]} 15. exf6 {[%clk 0:02:38]}  Bxf6 {[%clk 0:02:06]} 16. Qb3 {[%clk 0:02:36]}  Ne7 {[%clk 0:02:04]} 17. Ne5 {[%clk 0:02:31]}  Be6 {[%clk 0:01:48]} 18. e4 {[%clk 0:02:19]}  Bxe5 {[%clk 0:01:33]} 19. dxe5 {[%clk 0:02:17]}  c6 {[%clk 0:01:34]} 20. Rad1 {[%clk 0:02:13]}  Qb6+ {[%clk 0:01:24]} 21. Qxb6 {[%clk 0:02:12]}  axb6 {[%clk 0:01:25]} 22. exd5 {[%clk 0:02:12]}  cxd5 {[%clk 0:01:23]} 23. Nxd5 {[%clk 0:02:12]}  Nxd5 {[%clk 0:01:22]} 24. Bxd5 {[%clk 0:02:13]}  Bxd5 {[%clk 0:01:23]} 25. Rxd5 {[%clk 0:02:14]}  Rxa2 {[%clk 0:01:23]} 26. Rb5 {[%clk 0:02:13]}  Ra6 {[%clk 0:01:15]} 27. Kg2 {[%clk 0:02:08]}  Re8 {[%clk 0:01:14]} 28. Rd1 {[%clk 0:02:06]}  Ra5 {[%clk 0:01:11]} 29. Rxb6 {[%clk 0:02:05]}  Raxe5 {[%clk 0:01:07]} 30. Rxg6+ {[%clk 0:02:05]}  Kf7 {[%clk 0:01:05]} 31. Rb6 {[%clk 0:02:03]}  R8e7 {[%clk 0:01:04]} 32. Rxh6 {[%clk 0:01:54]}  Kg7 {[%clk 0:00:47]} 33. Rb6 {[%clk 0:01:52]}  Re2+ {[%clk 0:00:47]} 34. Kh3 {[%clk 0:01:51]}  Rc7 {[%clk 0:00:47]} 35. Rd4 {[%clk 0:01:48]}  Rcc2 {[%clk 0:00:45]} 36. Rxb7+ {[%clk 0:01:48]}  Kf6 {[%clk 0:00:45]} 37. b4 {[%clk 0:01:28]}  Rxh2+ {[%clk 0:00:43]} 38. Kg4 {[%clk 0:01:28]}  Rhg2 {[%clk 0:00:43]} 39. Rf4+ {[%clk 0:01:25]}  Ke6 {[%clk 0:00:40]} 40. b5 {[%clk 0:01:24]}  Rc3 {[%clk 0:00:34]} 41. Rf3 {[%clk 0:01:23]}  Rc4+ {[%clk 0:00:34]} 42. Kh3 {[%clk 0:01:23]}  Rb2 {[%clk 0:00:34]} 43. Re3+ {[%clk 0:01:08]}  Kf5 {[%clk 0:00:29]} 44. Rd3 {[%clk 0:00:44]}  Rc8 {[%clk 0:00:18]} 45. Rd5+ {[%clk 0:00:42]}  Ke4 {[%clk 0:00:19]} 46. Rh5 {[%clk 0:00:40]}  Rg8 {[%clk 0:00:18]} 47. Re7+ {[%clk 0:00:39]}  Kd4 {[%clk 0:00:18]} 48. Rh4+ {[%clk 0:00:29]}  Kd5 {[%clk 0:00:16]} 49. Rd7+ {[%clk 0:00:24]}  Ke6 {[%clk 0:00:15]} 50. Rb7 {[%clk 0:00:21]}  Rb3 {[%clk 0:00:15]} 51. Rg4 {[%clk 0:00:20]}  Rh8+ {[%clk 0:00:15]} 52. Kg2 {[%clk 0:00:20]}  Rb2+ {[%clk 0:00:14]} 53. Kf3 {[%clk 0:00:21]}  Rc8 {[%clk 0:00:13]} 54. Re4+ {[%clk 0:00:20]}  Kf5 {[%clk 0:00:13]} 55. g4+ {[%clk 0:00:19]}  Kg5 {[%clk 0:00:14]} 56. Re5+ {[%clk 0:00:20]}  Kf6 {[%clk 0:00:14]} 57. Rf5+ {[%clk 0:00:20]}  Kg6 {[%clk 0:00:15]} 58. Rb6+ {[%clk 0:00:20]}  Kg7 {[%clk 0:00:15]} 59. Kf4 {[%clk 0:00:20]}  Rg2 {[%clk 0:00:08]} 60. Rb7+ {[%clk 0:00:19]}  Kg6 {[%clk 0:00:07]} 61. Rb6+ {[%clk 0:00:20]}  Kg7 {[%clk 0:00:07]} 62. Rc6 {[%clk 0:00:20]}  Rd8 {[%clk 0:00:07]} 63. Rg5+ {[%clk 0:00:19]}  Kf7 {[%clk 0:00:06]} 64. Rf5+ {[%clk 0:00:18]}  Ke7 {[%clk 0:00:07]} 65. Rc4 {[%clk 0:00:10]}  Rg8 {[%clk 0:00:06]} 66. Re4+ {[%clk 0:00:09]}  Kd6 {[%clk 0:00:05]} 67. Kf3 {[%clk 0:00:10]}  Rg1 {[%clk 0:00:05]} 68. b6 {[%clk 0:00:09]}  Rf1+ {[%clk 0:00:05]} 69. Ke3 {[%clk 0:00:08]}  Re1+ {[%clk 0:00:05]} 70. Kf3 {[%clk 0:00:08]}  Rxe4 {[%clk 0:00:05]} 71. Kxe4 {[%clk 0:00:07]}  Rxg4+ {[%clk 0:00:05]} 72. Kf3 {[%clk 0:00:07]}  Rb4 {[%clk 0:00:06]} 73. Rf6+ {[%clk 0:00:07]}  Kc5 {[%clk 0:00:06]} 74. Ke3 {[%clk 0:00:08]}  Rxb6 {[%clk 0:00:06]} 75. Rf5+ {[%clk 0:00:09]}  Kc6 {[%clk 0:00:06]} 76. Kd4 {[%clk 0:00:09]}  Rb4+ {[%clk 0:00:06]} 77. Kc3 {[%clk 0:00:10]}  Rh4 {[%clk 0:00:07]} 78. Rf6+ {[%clk 0:00:10]}  Kc5 {[%clk 0:00:07]} 79. Rf5+ {[%clk 0:00:11]}  Kc6 {[%clk 0:00:07]} 80. Rf6+ {[%clk 0:00:11]}  Kc5 {[%clk 0:00:08]} 81. Rf5+ {[%clk 0:00:12]}  Kc6 {[%clk 0:00:09]} 1/2-1/2


[Site "https://www.chess.com"]

[Event "Titled Tuesday Blitz May 23 Early 2023"]
[White "Zemlyanskii, Ivan"]
[Black "Fiorito, Joaquin"]
[WhiteFideId "24249971"]
[BlackFideId "180173"]
[WhiteElo "2421"]
[BlackElo "2157"]
[Result "0-1"]
[Round "09"]
[TimeControl "180+2"]
[Date "2023.05.23"]
[WhiteClock "0:00:01"]
[BlackClock "0:00:59"]

1. d4 {[%clk 0:03:00]}  Nf6 {[%clk 0:03:00]} 2. c4 {[%clk 0:03:00]}  e6 {[%clk 0:03:00]} 3. Bf4 {[%clk 0:03:01]}  d5 {[%clk 0:02:59]} 4. Nc3 {[%clk 0:03:01]}  Be7 {[%clk 0:02:55]} 5. e3 {[%clk 0:03:00]}  O-O {[%clk 0:02:55]} 6. Nf3 {[%clk 0:03:01]}  c5 {[%clk 0:02:51]} 7. dxc5 {[%clk 0:02:56]}  Bxc5 {[%clk 0:02:52]} 8. cxd5 {[%clk 0:02:56]}  exd5 {[%clk 0:02:46]} 9. Be2 {[%clk 0:02:51]}  Nc6 {[%clk 0:02:43]} 10. O-O {[%clk 0:02:51]}  Be6 {[%clk 0:02:43]} 11. Rc1 {[%clk 0:02:48]}  Qe7 {[%clk 0:02:42]} 12. Na4 {[%clk 0:02:31]}  Bd6 {[%clk 0:02:37]} 13. Bxd6 {[%clk 0:02:30]}  Qxd6 {[%clk 0:02:38]} 14. Nc3 {[%clk 0:02:30]}  a6 {[%clk 0:02:38]} 15. Nd4 {[%clk 0:02:28]}  Rac8 {[%clk 0:02:37]} 16. Qd2 {[%clk 0:02:24]}  Ne5 {[%clk 0:02:33]} 17. b3 {[%clk 0:02:11]}  b5 {[%clk 0:02:22]} 18. Nxe6 {[%clk 0:01:28]}  fxe6 {[%clk 0:02:22]} 19. f4 {[%clk 0:01:27]}  Nc6 {[%clk 0:02:17]} 20. Bf3 {[%clk 0:01:27]}  Rfd8 {[%clk 0:02:15]} 21. Ne2 {[%clk 0:01:26]}  e5 {[%clk 0:02:08]} 22. fxe5 {[%clk 0:01:11]}  Qxe5 {[%clk 0:02:05]} 23. Nd4 {[%clk 0:01:03]}  Nxd4 {[%clk 0:02:02]} 24. exd4 {[%clk 0:01:04]}  Qd6 {[%clk 0:01:55]} 25. Qg5 {[%clk 0:01:03]}  Re8 {[%clk 0:01:45]} 26. Qf5 {[%clk 0:00:49]}  Rxc1 {[%clk 0:01:22]} 27. Rxc1 {[%clk 0:00:50]}  Qb4 {[%clk 0:01:21]} 28. Bxd5+ {[%clk 0:00:19]}  Kh8 {[%clk 0:01:21]} 29. Be6 {[%clk 0:00:02]}  Qxd4+ {[%clk 0:01:17]} 30. Kf1 {[%clk 0:00:02]}  Ne4 {[%clk 0:01:07]} 31. Qf7 {[%clk 0:00:02]}  Qd3+ {[%clk 0:00:58]} 32. Ke1 {[%clk 0:00:01]}  Qe3+ {[%clk 0:00:58]} 33. Kd1 {[%clk 0:00:01]}  Qd2# {[%clk 0:00:59]} 0-1


[Site "https://www.chess.com"]

[Event "Titled Tuesday Blitz May 23 Early 2023"]
[White "Omelja, Artem"]
[Black "Seo, Jung Min"]
[WhiteFideId "14119846"]
[BlackFideId "1734687"]
[WhiteElo "2404"]
[BlackElo "2468"]
[Result "1/2-1/2"]
[Round "09"]
[TimeControl "180+2"]
[Date "2023.05.23"]
[WhiteClock "0:00:13"]
[BlackClock "0:01:22"]

1. e4 {[%clk 0:03:00]}  c5 {[%clk 0:02:58]} 2. Nf3 {[%clk 0:03:00]}  e6 {[%clk 0:02:56]} 3. d3 {[%clk 0:03:00]}  d5 {[%clk 0:02:55]} 4. Nbd2 {[%clk 0:03:00]}  g6 {[%clk 0:02:53]} 5. g3 {[%clk 0:02:53]}  Bg7 {[%clk 0:02:53]} 6. Bg2 {[%clk 0:02:54]}  Nc6 {[%clk 0:02:53]} 7. O-O {[%clk 0:02:54]}  Nge7 {[%clk 0:02:52]} 8. Re1 {[%clk 0:02:54]}  Qc7 {[%clk 0:02:50]} 9. Qe2 {[%clk 0:02:54]}  O-O {[%clk 0:02:46]} 10. e5 {[%clk 0:02:52]}  f6 {[%clk 0:02:43]} 11. exf6 {[%clk 0:02:52]}  Bxf6 {[%clk 0:02:44]} 12. Nb3 {[%clk 0:02:52]}  Nf5 {[%clk 0:02:33]} 13. c3 {[%clk 0:02:44]}  b6 {[%clk 0:02:26]} 14. Bf4 {[%clk 0:02:44]}  Qe7 {[%clk 0:02:25]} 15. Ne5 {[%clk 0:02:30]}  Nd8 {[%clk 0:02:23]} 16. Ng4 {[%clk 0:02:27]}  Bg7 {[%clk 0:02:16]} 17. Be5 {[%clk 0:02:16]}  Nc6 {[%clk 0:02:15]} 18. Bxg7 {[%clk 0:02:09]}  Qxg7 {[%clk 0:02:15]} 19. Ne5 {[%clk 0:02:07]}  Qxe5 {[%clk 0:02:13]} 20. Qxe5 {[%clk 0:02:07]}  Nxe5 {[%clk 0:02:13]} 21. Rxe5 {[%clk 0:02:08]}  Bd7 {[%clk 0:02:13]} 22. Rc1 {[%clk 0:01:57]}  Rae8 {[%clk 0:02:12]} 23. d4 {[%clk 0:01:57]}  cxd4 {[%clk 0:02:05]} 24. Nxd4 {[%clk 0:01:55]}  Nxd4 {[%clk 0:02:04]} 25. cxd4 {[%clk 0:01:56]}  Rc8 {[%clk 0:02:04]} 26. Ree1 {[%clk 0:01:56]}  Kf7 {[%clk 0:02:02]} 27. f4 {[%clk 0:01:55]}  h6 {[%clk 0:01:59]} 28. Kf2 {[%clk 0:01:51]}  g5 {[%clk 0:01:58]} 29. Ke3 {[%clk 0:01:45]}  Kf6 {[%clk 0:01:57]} 30. Bf3 {[%clk 0:01:38]}  a5 {[%clk 0:01:52]} 31. a3 {[%clk 0:01:38]}  Ke7 {[%clk 0:01:51]} 32. fxg5 {[%clk 0:01:32]}  hxg5 {[%clk 0:01:50]} 33. h4 {[%clk 0:01:32]}  gxh4 {[%clk 0:01:50]} 34. gxh4 {[%clk 0:01:33]}  Kd6 {[%clk 0:01:50]} 35. Rxc8 {[%clk 0:01:24]}  Rxc8 {[%clk 0:01:45]} 36. Kf4 {[%clk 0:01:15]}  Rf8+ {[%clk 0:01:40]} 37. Kg3 {[%clk 0:01:15]}  Rg8+ {[%clk 0:01:40]} 38. Kf4 {[%clk 0:01:15]}  Rf8+ {[%clk 0:01:39]} 39. Kg3 {[%clk 0:01:16]}  Rg8+ {[%clk 0:01:39]} 40. Kf2 {[%clk 0:00:55]}  Rh8 {[%clk 0:01:39]} 41. h5 {[%clk 0:00:49]}  Be8 {[%clk 0:01:31]} 42. Re5 {[%clk 0:00:49]}  Bf7 {[%clk 0:01:32]} 43. Kg3 {[%clk 0:00:48]}  Ke7 {[%clk 0:01:32]} 44. Bxd5 {[%clk 0:00:33]}  Rxh5 {[%clk 0:01:31]} 45. Rxh5 {[%clk 0:00:32]}  Bxh5 {[%clk 0:01:31]} 46. Be4 {[%clk 0:00:32]}  Kd6 {[%clk 0:01:29]} 47. Kf4 {[%clk 0:00:32]}  Be2 {[%clk 0:01:28]} 48. Ke3 {[%clk 0:00:32]}  Bc4 {[%clk 0:01:28]} 49. Kf4 {[%clk 0:00:29]}  Bd5 {[%clk 0:01:27]} 50. Bd3 {[%clk 0:00:29]}  Bb3 {[%clk 0:01:27]} 51. Ke4 {[%clk 0:00:28]}  Ba2 {[%clk 0:01:25]} 52. Bb5 {[%clk 0:00:23]}  Bd5+ {[%clk 0:01:24]} 53. Kd3 {[%clk 0:00:22]}  e5 {[%clk 0:01:23]} 54. dxe5+ {[%clk 0:00:16]}  Kxe5 {[%clk 0:01:23]} 55. Bc4 {[%clk 0:00:16]}  Bc6 {[%clk 0:01:22]} 56. Bb3 {[%clk 0:00:13]} 1/2-1/2


[Site "https://www.chess.com"]

[Event "Titled Tuesday Blitz May 23 Early 2023"]
[White "Djordjevic, Vuk"]
[Black "Thecourseoisildur"]
[WhiteFideId "902098"]
[WhiteElo "2452"]
[BlackElo "2588"]
[Result "1-0"]
[Round "09"]
[TimeControl "180+2"]
[Date "2023.05.23"]
[WhiteClock "0:01:49"]
[BlackClock "0:00:00"]

1. d4 {[%clk 0:03:00]}  Nf6 {[%clk 0:03:00]} 2. Bg5 {[%clk 0:03:00]}  d5 {[%clk 0:02:59]} 3. Bxf6 {[%clk 0:03:01]}  gxf6 {[%clk 0:03:00]} 4. e3 {[%clk 0:03:01]}  c5 {[%clk 0:02:59]} 5. dxc5 {[%clk 0:03:02]}  e6 {[%clk 0:03:00]} 6. Nf3 {[%clk 0:03:02]}  Bxc5 {[%clk 0:02:59]} 7. c4 {[%clk 0:03:03]}  dxc4 {[%clk 0:02:57]} 8. Nbd2 {[%clk 0:03:03]}  c3 {[%clk 0:02:55]} 9. bxc3 {[%clk 0:03:04]}  Nc6 {[%clk 0:02:53]} 10. Qc2 {[%clk 0:03:03]}  f5 {[%clk 0:02:38]} 11. h3 {[%clk 0:02:56]}  Qf6 {[%clk 0:02:35]} 12. g4 {[%clk 0:02:55]}  e5 {[%clk 0:01:39]} 13. gxf5 {[%clk 0:02:54]}  Bxf5 {[%clk 0:01:36]} 14. Ne4 {[%clk 0:02:12]}  Qg6 {[%clk 0:01:04]} 15. Bd3 {[%clk 0:02:02]}  Qg2 {[%clk 0:00:42]} 16. Ke2 {[%clk 0:02:01]}  Bxe4 {[%clk 0:00:24]} 17. Bxe4 {[%clk 0:02:01]}  Qg7 {[%clk 0:00:24]} 18. Bxc6+ {[%clk 0:01:59]}  bxc6 {[%clk 0:00:24]} 19. Qe4 {[%clk 0:02:00]}  Bd6 {[%clk 0:00:11]} 20. Qxc6+ {[%clk 0:02:00]}  Ke7 {[%clk 0:00:12]} 21. Rhd1 {[%clk 0:01:58]}  Rhd8 {[%clk 0:00:10]} 22. Rxd6 {[%clk 0:01:58]}  Rxd6 {[%clk 0:00:09]} 23. Qxa8 {[%clk 0:01:58]}  e4 {[%clk 0:00:10]} 24. Qxe4+ {[%clk 0:01:58]}  Kf8 {[%clk 0:00:10]} 25. Nd4 {[%clk 0:01:58]}  Qg5 {[%clk 0:00:06]} 26. Rb1 {[%clk 0:01:56]}  Qh5+ {[%clk 0:00:06]} 27. Qg4 {[%clk 0:01:55]}  Qc5 {[%clk 0:00:03]} 28. Nf5 {[%clk 0:01:52]}  Qxc3 {[%clk 0:00:00]} 29. Rb8+ {[%clk 0:01:49]} 1-0


[Site "https://www.chess.com"]

[Event "Titled Tuesday Blitz May 23 Early 2023"]
[White "Karthik Rajaa"]
[Black "Spata, German"]
[WhiteFideId "25035215"]
[BlackFideId "113026"]
[WhiteElo "2215"]
[BlackElo "2260"]
[Result "1-0"]
[Round "09"]
[TimeControl "180+2"]
[Date "2023.05.23"]
[WhiteClock "0:00:24"]
[BlackClock "0:00:05"]

1. Nf3 {[%clk 0:03:00]}  Nf6 {[%clk 0:02:57]} 2. b3 {[%clk 0:03:01]}  e6 {[%clk 0:02:56]} 3. Bb2 {[%clk 0:03:00]}  b6 {[%clk 0:02:56]} 4. g3 {[%clk 0:03:00]}  Bb7 {[%clk 0:02:54]} 5. Bg2 {[%clk 0:03:01]}  Be7 {[%clk 0:02:54]} 6. O-O {[%clk 0:03:02]}  O-O {[%clk 0:02:55]} 7. c4 {[%clk 0:03:01]}  c5 {[%clk 0:02:54]} 8. e3 {[%clk 0:03:01]}  d5 {[%clk 0:02:54]} 9. d3 {[%clk 0:03:01]}  Nc6 {[%clk 0:02:54]} 10. Qe2 {[%clk 0:03:00]}  Qc7 {[%clk 0:02:52]} 11. Nc3 {[%clk 0:02:59]}  Rad8 {[%clk 0:02:51]} 12. Rad1 {[%clk 0:02:45]}  Qb8 {[%clk 0:02:50]} 13. Nb1 {[%clk 0:02:40]}  Rd7 {[%clk 0:02:46]} 14. Ne1 {[%clk 0:02:39]}  Rfd8 {[%clk 0:02:45]} 15. f4 {[%clk 0:02:39]}  dxc4 {[%clk 0:02:43]} 16. bxc4 {[%clk 0:02:39]}  Nb4 {[%clk 0:02:43]} 17. Bxb7 {[%clk 0:02:29]}  Qxb7 {[%clk 0:02:43]} 18. a3 {[%clk 0:02:30]}  Nc6 {[%clk 0:02:35]} 19. Ng2 {[%clk 0:02:22]}  a6 {[%clk 0:02:35]} 20. g4 {[%clk 0:02:17]}  b5 {[%clk 0:02:35]} 21. g5 {[%clk 0:02:17]}  Ne8 {[%clk 0:02:34]} 22. cxb5 {[%clk 0:02:01]}  axb5 {[%clk 0:02:33]} 23. h4 {[%clk 0:02:00]}  b4 {[%clk 0:02:22]} 24. h5 {[%clk 0:01:59]}  bxa3 {[%clk 0:02:20]} 25. Nxa3 {[%clk 0:01:59]}  Nb4 {[%clk 0:02:20]} 26. Ne1 {[%clk 0:01:45]}  Nd6 {[%clk 0:02:09]} 27. g6 {[%clk 0:01:22]}  Nf5 {[%clk 0:01:54]} 28. gxf7+ {[%clk 0:01:15]}  Kxf7 {[%clk 0:01:55]} 29. Kh2 {[%clk 0:01:03]}  Bh4 {[%clk 0:01:37]} 30. Nc4 {[%clk 0:01:02]}  Bf6 {[%clk 0:01:26]} 31. Nf3 {[%clk 0:00:47]}  Nxd3 {[%clk 0:01:05]} 32. Rxd3 {[%clk 0:00:45]}  Rxd3 {[%clk 0:01:05]} 33. Nfe5+ {[%clk 0:00:44]}  Bxe5 {[%clk 0:00:56]} 34. Nxe5+ {[%clk 0:00:45]}  Kg8 {[%clk 0:00:56]} 35. Nxd3 {[%clk 0:00:35]}  c4 {[%clk 0:00:47]} 36. Ne5 {[%clk 0:00:31]}  Qb4 {[%clk 0:00:35]} 37. Bd4 {[%clk 0:00:23]}  Nxd4 {[%clk 0:00:31]} 38. exd4 {[%clk 0:00:24]}  Rxd4 {[%clk 0:00:31]} 39. Rf2 {[%clk 0:00:25]}  c3 {[%clk 0:00:30]} 40. Nc6 {[%clk 0:00:24]}  Qb2 {[%clk 0:00:05]} 41. Nxd4 {[%clk 0:00:24]} 1-0


[Site "https://www.chess.com"]

[Event "Titled Tuesday Blitz May 23 Early 2023"]
[White "Samunenkov, Ihor"]
[Black "Gontcharov, Vladislav"]
[WhiteFideId "14187086"]
[BlackFideId "4123492"]
[WhiteElo "2457"]
[BlackElo "2420"]
[Result "1-0"]
[Round "09"]
[TimeControl "180+2"]
[Date "2023.05.23"]
[WhiteClock "0:00:23"]
[BlackClock "0:00:00"]

1. d4 {[%clk 0:03:00]}  Nf6 {[%clk 0:02:59]} 2. c4 {[%clk 0:03:01]}  c5 {[%clk 0:02:59]} 3. d5 {[%clk 0:03:01]}  e6 {[%clk 0:02:59]} 4. Nc3 {[%clk 0:03:01]}  exd5 {[%clk 0:02:59]} 5. cxd5 {[%clk 0:03:01]}  d6 {[%clk 0:03:00]} 6. e4 {[%clk 0:03:02]}  g6 {[%clk 0:03:00]} 7. h3 {[%clk 0:03:01]}  Bg7 {[%clk 0:03:01]} 8. Nf3 {[%clk 0:03:01]}  O-O {[%clk 0:03:01]} 9. Be3 {[%clk 0:03:01]}  Re8 {[%clk 0:02:54]} 10. Nd2 {[%clk 0:03:01]}  Na6 {[%clk 0:02:54]} 11. Be2 {[%clk 0:02:57]}  Nc7 {[%clk 0:02:54]} 12. a4 {[%clk 0:02:56]}  b6 {[%clk 0:02:53]} 13. O-O {[%clk 0:02:54]}  Ba6 {[%clk 0:02:51]} 14. Re1 {[%clk 0:02:17]}  Bxe2 {[%clk 0:02:49]} 15. Qxe2 {[%clk 0:02:14]}  a6 {[%clk 0:02:45]} 16. Qd3 {[%clk 0:02:07]}  Nd7 {[%clk 0:02:32]} 17. f4 {[%clk 0:01:43]}  g5 {[%clk 0:02:13]} 18. Nc4 {[%clk 0:01:37]}  gxf4 {[%clk 0:02:11]} 19. Bxf4 {[%clk 0:01:36]}  Ne5 {[%clk 0:02:11]} 20. Bxe5 {[%clk 0:01:31]}  Bxe5 {[%clk 0:02:11]} 21. Nxb6 {[%clk 0:01:27]}  Rb8 {[%clk 0:02:09]} 22. Nc4 {[%clk 0:01:25]}  Rb4 {[%clk 0:02:09]} 23. Kh1 {[%clk 0:01:22]}  Qg5 {[%clk 0:02:02]} 24. Rf1 {[%clk 0:01:17]}  Qg3 {[%clk 0:01:47]} 25. Nxe5 {[%clk 0:01:10]}  Qxe5 {[%clk 0:01:40]} 26. Rf5 {[%clk 0:01:09]}  Qg7 {[%clk 0:01:35]} 27. Raf1 {[%clk 0:01:00]}  Rd4 {[%clk 0:01:19]} 28. Qe3 {[%clk 0:00:50]}  Re5 {[%clk 0:00:43]} 29. Rxf7 {[%clk 0:00:45]}  Qxf7 {[%clk 0:00:42]} 30. Rxf7 {[%clk 0:00:46]}  Kxf7 {[%clk 0:00:42]} 31. Qh6 {[%clk 0:00:46]}  Ne8 {[%clk 0:00:42]} 32. Qxh7+ {[%clk 0:00:45]}  Kf8 {[%clk 0:00:42]} 33. Ne2 {[%clk 0:00:32]}  Rdxe4 {[%clk 0:00:42]} 34. Nf4 {[%clk 0:00:30]}  Rxf4 {[%clk 0:00:34]} 35. Qh6+ {[%clk 0:00:31]}  Ke7 {[%clk 0:00:34]} 36. Qxf4 {[%clk 0:00:31]}  Rxd5 {[%clk 0:00:34]} 37. Qe4+ {[%clk 0:00:29]}  Re5 {[%clk 0:00:35]} 38. Qb7+ {[%clk 0:00:29]}  Ke6 {[%clk 0:00:31]} 39. Qxa6 {[%clk 0:00:27]}  Nf6 {[%clk 0:00:31]} 40. Qc8+ {[%clk 0:00:27]}  Ke7 {[%clk 0:00:31]} 41. a5 {[%clk 0:00:27]}  c4 {[%clk 0:00:23]} 42. a6 {[%clk 0:00:26]}  Nh5 {[%clk 0:00:15]} 43. a7 {[%clk 0:00:25]}  Ng3+ {[%clk 0:00:07]} 44. Kh2 {[%clk 0:00:25]}  Nf1+ {[%clk 0:00:06]} 45. Kg1 {[%clk 0:00:25]}  Re1 {[%clk 0:00:00]} 46. a8=Q {[%clk 0:00:23]} 1-0


[Site "https://www.chess.com"]

[Event "Titled Tuesday Blitz May 23 Early 2023"]
[White "gueraumasague"]
[Black "Javakhadze, Zurab"]
[BlackFideId "13603647"]
[WhiteElo "2551"]
[BlackElo "2381"]
[Result "1-0"]
[Round "09"]
[TimeControl "180+2"]
[Date "2023.05.23"]
[WhiteClock "0:00:05"]
[BlackClock "0:00:01"]

1. e4 {[%clk 0:03:00]}  e5 {[%clk 0:02:53]} 2. Nc3 {[%clk 0:03:00]}  Nf6 {[%clk 0:02:53]} 3. f4 {[%clk 0:02:59]}  d5 {[%clk 0:02:53]} 4. fxe5 {[%clk 0:02:59]}  Nxe4 {[%clk 0:02:52]} 5. Qf3 {[%clk 0:03:00]}  Nxc3 {[%clk 0:02:52]} 6. dxc3 {[%clk 0:03:01]}  Be7 {[%clk 0:02:43]} 7. Bf4 {[%clk 0:02:52]}  Be6 {[%clk 0:02:42]} 8. O-O-O {[%clk 0:02:48]}  Nd7 {[%clk 0:02:41]} 9. Qg3 {[%clk 0:02:45]}  g5 {[%clk 0:02:40]} 10. Be3 {[%clk 0:02:39]}  c5 {[%clk 0:02:10]} 11. Bb5 {[%clk 0:02:32]}  Qa5 {[%clk 0:02:09]} 12. Bxd7+ {[%clk 0:02:31]}  Kxd7 {[%clk 0:02:09]} 13. a3 {[%clk 0:02:28]}  Rad8 {[%clk 0:02:00]} 14. Nf3 {[%clk 0:02:27]}  h6 {[%clk 0:01:57]} 15. h4 {[%clk 0:01:58]}  g4 {[%clk 0:01:53]} 16. Nd2 {[%clk 0:01:50]}  Kc8 {[%clk 0:01:48]} 17. Qf2 {[%clk 0:01:38]}  b6 {[%clk 0:01:10]} 18. Nf1 {[%clk 0:01:15]}  Qb5 {[%clk 0:00:44]} 19. Ng3 {[%clk 0:01:11]}  Qc4 {[%clk 0:00:43]} 20. Nf5 {[%clk 0:01:05]}  Bf8 {[%clk 0:00:42]} 21. Rhf1 {[%clk 0:00:52]}  Qa2 {[%clk 0:00:40]} 22. Qf4 {[%clk 0:00:24]}  d4 {[%clk 0:00:30]} 23. cxd4 {[%clk 0:00:20]}  cxd4 {[%clk 0:00:22]} 24. Bxd4 {[%clk 0:00:11]}  Qa1+ {[%clk 0:00:22]} 25. Kd2 {[%clk 0:00:11]}  Qxb2 {[%clk 0:00:22]} 26. Ke3 {[%clk 0:00:10]}  Qxa3+ {[%clk 0:00:20]} 27. Rd3 {[%clk 0:00:10]}  Qa4 {[%clk 0:00:14]} 28. Nd6+ {[%clk 0:00:08]}  Bxd6 {[%clk 0:00:12]} 29. exd6 {[%clk 0:00:09]}  Rhe8 {[%clk 0:00:11]} 30. Kf2 {[%clk 0:00:09]}  Bc4 {[%clk 0:00:10]} 31. Rc3 {[%clk 0:00:08]}  Kb7 {[%clk 0:00:10]} 32. Re1 {[%clk 0:00:07]}  Rxe1 {[%clk 0:00:09]} 33. Kxe1 {[%clk 0:00:07]}  Qe8+ {[%clk 0:00:09]} 34. Kf2 {[%clk 0:00:08]}  Qe2+ {[%clk 0:00:09]} 35. Kg3 {[%clk 0:00:08]}  b5 {[%clk 0:00:06]} 36. Re3 {[%clk 0:00:04]}  Qxc2 {[%clk 0:00:04]} 37. Re7+ {[%clk 0:00:05]}  Kc6 {[%clk 0:00:04]} 38. Rc7+ {[%clk 0:00:05]}  Kd5 {[%clk 0:00:01]} 39. Qe5# {[%clk 0:00:05]} 1-0


[Site "https://www.chess.com"]

[Event "Titled Tuesday Blitz May 23 Early 2023"]
[White "Srihari L R"]
[Black "Shukhman, Anna"]
[WhiteFideId "46617116"]
[BlackFideId "54180058"]
[WhiteElo "2334"]
[BlackElo "2235"]
[Result "1/2-1/2"]
[Round "09"]
[TimeControl "180+2"]
[Date "2023.05.23"]
[WhiteClock "0:02:05"]
[BlackClock "0:01:26"]

1. Nf3 {[%clk 0:03:00]}  Nf6 {[%clk 0:02:59]} 2. c4 {[%clk 0:03:00]}  g6 {[%clk 0:03:00]} 3. b4 {[%clk 0:03:00]}  Bg7 {[%clk 0:03:00]} 4. Bb2 {[%clk 0:03:00]}  O-O {[%clk 0:03:01]} 5. e3 {[%clk 0:03:00]}  d5 {[%clk 0:03:01]} 6. cxd5 {[%clk 0:02:59]}  Nxd5 {[%clk 0:03:02]} 7. Bxg7 {[%clk 0:03:00]}  Kxg7 {[%clk 0:03:03]} 8. Qb3 {[%clk 0:03:00]}  Be6 {[%clk 0:03:02]} 9. Qb2+ {[%clk 0:02:58]}  f6 {[%clk 0:03:01]} 10. Nc3 {[%clk 0:02:58]}  Nc6 {[%clk 0:02:57]} 11. a3 {[%clk 0:02:55]}  Bf7 {[%clk 0:02:55]} 12. Be2 {[%clk 0:02:55]}  e5 {[%clk 0:02:54]} 13. O-O {[%clk 0:02:55]}  a5 {[%clk 0:02:52]} 14. b5 {[%clk 0:02:55]}  Nce7 {[%clk 0:02:52]} 15. Rfd1 {[%clk 0:02:54]}  c5 {[%clk 0:02:46]} 16. bxc6 {[%clk 0:02:53]}  bxc6 {[%clk 0:02:46]} 17. d4 {[%clk 0:02:52]}  Rb8 {[%clk 0:02:45]} 18. Qc2 {[%clk 0:02:51]}  Nxc3 {[%clk 0:02:42]} 19. Qxc3 {[%clk 0:02:50]}  e4 {[%clk 0:02:18]} 20. Nd2 {[%clk 0:02:50]}  Bd5 {[%clk 0:02:16]} 21. Rdb1 {[%clk 0:02:46]}  Qc7 {[%clk 0:02:14]} 22. Bc4 {[%clk 0:02:46]}  f5 {[%clk 0:02:12]} 23. g3 {[%clk 0:02:45]}  h5 {[%clk 0:02:08]} 24. h4 {[%clk 0:02:45]}  a4 {[%clk 0:02:00]} 25. Nf1 {[%clk 0:02:34]}  Rxb1 {[%clk 0:01:51]} 26. Rxb1 {[%clk 0:02:34]}  Rb8 {[%clk 0:01:51]} 27. Rxb8 {[%clk 0:02:33]}  Qxb8 {[%clk 0:01:52]} 28. Bxd5 {[%clk 0:02:33]}  cxd5 {[%clk 0:01:51]} 29. Qa5 {[%clk 0:02:28]}  Qb3 {[%clk 0:01:46]} 30. Qc5 {[%clk 0:02:27]}  Kf7 {[%clk 0:01:45]} 31. Kg2 {[%clk 0:02:27]}  Qc4 {[%clk 0:01:35]} 32. Qa5 {[%clk 0:02:09]}  Qb3 {[%clk 0:01:26]} 33. Qc5 {[%clk 0:02:08]}  Qc4 {[%clk 0:01:26]} 34. Qa5 {[%clk 0:02:08]}  Qb3 {[%clk 0:01:26]} 35. Qc5 {[%clk 0:02:05]} 1/2-1/2


[Site "https://www.chess.com"]